Cogmind - Beta 15 @@@ ROGUE MODE // 2025.05.26 @ 18:19:33 // Winter2022/Polymind Player: Figgis Result: Destroyed by G-50 Soldier with Heavy Laser Performance ------------- Evolutions (5) 2500 Regions Visited (12) 2400 Robots Destroyed (78) 390 Value Destroyed (3034) 3034 Prototype IDs (5) 100 Alien Tech Used (0) 0 Bonus (7562) 7562 TOTAL SCORE: 15806 Bonus ------- Polymind Skill 6500 Follower Combat Kills 262 Registered with UFD 300 Met Optimus in HQ 500 Cogmind --------- Core Integrity 0/1000 Matter 0/0 Energy 48/50 System Corruption 3% Temperature Cool (19) Movement Walking (120) Location -5/Factory Parts ------- > --- POWER (1) -------- (None) > --- PROPULSION (2) --- Carbon-fiber Leg > --- UTILITY (1) ------ Advanced Heat Sink > --- WEAPON (1) ------- (None) > --- INVENTORY (1) ---- (None) Peak State ------------ > --- POWER ------------ Heavy Deuterium Engine > --- PROPULSION ------- Combat Antigrav System > --- UTILITY ---------- Advanced Launcher Guidance Computer Improved Target Analyzer Experimental Core Analyzer Improved Armor Integrity Analyzer EX Chip 1 EX Chip 1 EX Chip 1 EX Chip 1 EX Chip 1 EX Chip 1 EX Chip 1 EX Chip 1 EX Chip 1 EX Chip 1 EX Chip 2 EX Chip 2 EX Chip 2 EX Chip 2 EX Chip 2 EX Chip 2 EX Chip 2 EX Chip 2 > --- WEAPON ----------- AWS/EX-DEC > --- INVENTORY -------- Deploy-a-Sentry [Rating: 99] Favorites ----------- Power Heavy Deuterium Engine Engine Heavy Deuterium Engine Power Core Light Fission Core Propulsion Combat Antigrav System Leg Aluminum Leg Hover Unit Combat Antigrav System Flight Unit Flight Unit Utility EX Chip 1 Device Heat Sink Processor Advanced Launcher Guidance Computer Hackware EX Chip 1 Protection Core Shielding Weapon AWS/EX-DEC Energy Gun AWS/EX-DEC Ballistic Gun Gauss Rifle Special Weapon Improved Remote Datajack Impact Weapon Assembled Maul Slashing Weapon Axe Build | -11 -10 -10 -9 -9 -9 -8 -8 -8 -8 -8 -6 -5 ------- Run | Yrd Mat Min Mat Min Exi Min Mat Sto Rec Scr Fac Fac Slots Evolved . | . . . . . . . . . . . . . Power . | . . . . . . . . . . . . . Propulsion . | . . . . . . . . . . . . . Utility . | . . . . . . . . . . . . . Weapon . | . . . . . . . . . . . . . Parts Attached . | . . . . . . . . . . . . . Power . | . . . . . . . . . . . . . Engine . | . . . . . . . . . . . . . Core . | . . . . . . . . . . . . . Reactor . | . . . . . . . . . . . . . Propulsion . | . . . . . . . . . . . . . Treads . | . . . . . . . . . . . . . Leg . | . . . . . . . . . . . . . Wheel . | . . . . . . . . . . . . . Hover . | . . . . . . . . . . . . . Flight . | . . . . . . . . . . . . . Utility . | . . . . . . . . . . . . . Device . | . . . . . . . . . . . . . Storage . | . . . . . . . . . . . . . Processor . | . . . . . . . . . . . . . Hackware . | . . . . . . . . . . . . . Protection . | . . . . . . . . . . . . . Artifact . | . . . . . . . . . . . . . Weapon . | . . . . . . . . . . . . . Energy Gun . | . . . . . . . . . . . . . Energy Cannon . | . . . . . . . . . . . . . Ballistic Gun . | . . . . . . . . . . . . . Ballistic Cannon . | . . . . . . . . . . . . . Launcher . | . . . . . . . . . . . . . Special Weapon . | . . . . . . . . . . . . . Impact Weapon . | . . . . . . . . . . . . . Slashing Weapon . | . . . . . . . . . . . . . Piercing Weapon . | . . . . . . . . . . . . . Special Melee Weapon . | . . . . . . . . . . . . . Unidentified Prototypes . | . . . . . . . . . . . . . Parts Lost 42 | . 3 . . 4 . . 1 . . . 19 15 Power 7 | . 1 . . 1 . . . . . . 3 2 Propulsion 9 | . 2 . . 1 . . . . . . 1 5 Utility 15 | . . . . . . . 1 . . . 10 4 Weapon 11 | . . . . 2 . . . . . . 5 4 Highest Loss Streak 7 | . 2 . . 2 . . 1 . . . 7 7 To Critical Strikes . | . . . . . . . . . . . . . Average Backups . | . . . . . . . . . . . . . Power . | . . . . . . . . . . . . . Propulsion . | . . . . . . . . . . . . . Utility . | . . . . . . . . . . . . . Weapon . | . . . . . . . . . . . . . Tool/Special . | . . . . . . . . . . . . . Unused Backups 2 | . . . . . . . 1 . . . . 1 Power . | . . . . . . . . . . . . . Propulsion 2 | . . . . . . . 1 . . . . 1 Utility . | . . . . . . . . . . . . . Weapon . | . . . . . . . . . . . . . Tool/Special . | . . . . . . . . . . . . . Average Slot Usage (%) 86 | . 73 100 100 96 19 96 95 92 92 92 86 77 Engine 5 | . 14 20 20 14 . 3 3 3 3 3 2 3 Core 1 | . . . . . . . . . . . . 6 Leg 9 | . 26 40 40 29 . . . . . . . 16 Hover 3 | . . . . 12 . 3 3 3 3 3 3 . Device 4 | . 14 20 20 14 . . . . . . . 9 Processor 10 | . . . . . 3 15 15 15 15 15 14 8 Hackware 40 | . . . . . 13 69 68 65 65 65 59 9 Energy Gun 6 | . 14 20 20 13 . 3 3 3 3 3 3 5 Ballistic Gun 3 | . 1 . . 8 . . . . . . . 13 Peak Build Rating 99 | . 5 5 5 5 99 99 99 97 97 97 97 42 Average Rating 61 | . 3 5 5 4 25 99 98 97 97 97 78 31 On Entrance 49 | . . 5 5 5 . 99 99 97 97 97 97 41 Naked Turns 164 | . 51 . . . 108 . . . . . . 5 Heaviest Build 21 | . 7 7 7 7 21 21 21 21 21 21 21 21 Greatest Support 40 | 3 20 20 20 20 21 21 21 21 21 21 21 40 Greatest Overweight (x) 1 | . . . . . . . . . . . . 1 Average Overweight (x) . | . . . . . . . . . . . . . Largest Inventory Capacity 5 | . 1 1 1 1 2 2 2 2 2 2 2 5 Average Capacity 1 | . . 1 1 1 . 2 2 2 2 2 2 1 Most Carried 2 | . . . . . 1 1 2 1 1 1 1 2 Average Carried . | . . . . . . 1 1 1 1 1 1 . Final Capacity 2 | . 1 1 1 . 2 2 2 2 2 2 2 1 Final Carried 1 | . . . . . 1 1 1 1 1 1 1 . Class Distribution -------------------- 65% | Assembler 19% | Grunt 7% | Hunter 3% | Cogmind Dominant Class ---------------- Grunt | -10/Materials Grunt | -10/Mines Grunt | -9/Materials Grunt | -9/Mines Cogmind | -9/Exiles Assembler | -8/Mines Assembler | -8/Materials Assembler | -8/Storage Assembler | -8/Recycling Assembler | -8/Scraptown Assembler | -6/Factory Hunter | -5/Factory Resources | -11 -10 -10 -9 -9 -9 -8 -8 -8 -8 -8 -6 -5 ----------- Run | Yrd Mat Min Mat Min Exi Min Mat Sto Rec Scr Fac Fac Matter Collected 343 | . . . . 117 . . . . . . . 226 Remotely . | . . . . . . . . . . . . . Salvage Created 2953 | . 139 . . 21 . 53 685 734 168 . 479 674 Parts 179 | . 11 . . . . 7 61 36 4 . 27 33 Haulers Intercepted . | . . . . . . . . . . . . . Recyclers Shooed 5 | . 2 . . . . . . . . . . 3 Parts Field Recycled . | . . . . . . . . . . . . . Retrieved Matter . | . . . . . . . . . . . . . Parts Self-Destructed . | . . . . . . . . . . . . . Prevented . | . . . . . . . . . . . . . Kills | -11 -10 -10 -9 -9 -9 -8 -8 -8 -8 -8 -6 -5 ------- Run | Yrd Mat Min Mat Min Exi Min Mat Sto Rec Scr Fac Fac Combat Hostiles Destroyed 71 | . 6 . . 2 . 4 19 11 2 . 12 15 Melee 4 | . . . . 1 . . . . . . . 3 Guns 59 | . 6 . . 1 . 4 17 9 1 . 9 12 AOE 1 | . . . . . . . . . . . 1 . Classes Destroyed 12 | . 3 . . 1 . . 4 1 . . 1 2 Worker 1 | . 1 . . . . . . . . . . . Builder 1 | . . . . . . . 1 . . . . . Recycler 1 | . . . . . . . . 1 . . . . Mechanic 1 | . . . . . . . . . . . . 1 Watcher 5 | . . . . . . . 3 1 . . . 1 Swarmer 20 | . 2 . . . . 4 8 . . . 6 . Grunt 26 | . 4 . . . . . 8 6 . . 3 5 Duelist 2 | . . . . . . . 1 . . . . 1 Sentry 11 | . . . . . . . 2 5 2 . 1 1 Hunter 4 | . . . . . . . . . . . . 4 Programmer 6 | . . . . . . . . . . . 2 4 Assembled 2 | . . . . 2 . . . . . . . . Best Kill Streak 8 | . 2 . . 1 . 4 7 8 1 . 2 6 Combat Bots Only 7 | . 2 . . 1 . 4 6 7 1 . 2 6 Max Kills in Single Turn 2 | . 1 . . 1 . 1 2 1 1 . 2 1 Gunslinging . | . . . . . . . . . . . . . Exploded 1 | . . . . . . . . . . . 1 . Melee 1 | . . . . 1 . . . . . . . 1 Uniques/NPCs Destroyed . | . . . . . . . . . . . . . Combat | -11 -10 -10 -9 -9 -9 -8 -8 -8 -8 -8 -6 -5 -------- Run | Yrd Mat Min Mat Min Exi Min Mat Sto Rec Scr Fac Fac Hostile Shots Fired 575 | . 38 . . 41 . 6 21 20 . . 190 259 Missed 188 | . 8 . . 11 . 2 10 7 . . 74 76 Hits 387 | . 30 . . 30 . 4 11 13 . . 116 183 Melee 4 | . . . . 3 . . . . . . . 1 Projectile 383 | . 30 . . 27 . 4 11 13 . . 116 182 AOE 1 | . . . . . . . . . . . . 1 Critical Strikes 13 | . . . . 1 . . . 1 . . 1 10 Actively Blocked 1 | . . . . . . . . . . . . 1 Part Disruptions 1 | . . . . . . . . . . . . 1 Damage Taken 6118 | . 475 . . 477 . 31 144 211 . . 1572 3208 Core 2087 | . 145 . . 136 . 15 14 46 . . 729 1002 Absorbed by Shields . | . . . . . . . . . . . . . Redirected to Shielding 45 | . . . . . . . . . . . . 45 Ignored by Resistances 659 | . . . . . . . . . . . 235 424 Core Remaining (%) 61 | 100 . 42 . . . 62 . . . 89 14 . Volleys Fired 155 | . 31 . . 14 . . . . . . 37 73 Largest 3 | . 1 . . 1 . . . . . . 2 3 Hottest 125 | . 40 . . 40 . . . . . . 80 125 Shots Fired 333 | . 31 . . 14 . 5 47 30 10 . 67 129 Gun 333 | . 31 . . 14 . 5 47 30 10 . 67 129 Cannon . | . . . . . . . . . . . . . Launcher . | . . . . . . . . . . . . . Special . | . . . . . . . . . . . . . Kinetic 82 | . 1 . . 12 . . . . . . . 69 Thermal 133 | . 30 . . 2 . . . . . . 67 34 Explosive . | . . . . . . . . . . . . . Electromagnetic 118 | . . . . . . 5 47 30 10 . . 26 Robot Hit Streak 66 | . 5 . . 4 . 3 15 22 42 . 66 27 Robot Miss Streak 4 | . 2 . . 2 . 3 3 1 . . 4 4 Penetration Max 1 | . . . . . . . . . . . . 1 Secondary Targets 4 | . . . . . . . . . . . 1 3 Max Gunslinging Chain 1 | . . . . . . . . . . . 1 1 Autonomous 92 | . . . . . . 5 47 30 10 . . . Shots Hit Robots 282 | . 23 . . 12 . 4 44 30 10 . 51 108 Core Hits 157 | . 12 . . 7 . 4 32 22 2 . 32 46 Critical Kills . | . . . . . . . . . . . . . Critical Parts Destroyed . | . . . . . . . . . . . . . Critical Strikes 11 | . . . . . . 1 3 4 . . . 3 Burn 1 | . . . . . . . . . . . . 1 Corrupt 9 | . . . . . . 1 3 4 . . . 1 Sever 1 | . . . . . . . . . . . . 1 Melee Attacks 18 | . . . . 3 . . . . . . . 15 Impact 3 | . . . . 3 . . . . . . . . Slashing 15 | . . . . . . . . . . . . 15 Piercing . | . . . . . . . . . . . . . Sneak Attacks 2 | . . . . 1 . . . . . . . 1 Combat Hostiles 2 | . . . . 1 . . . . . . . 1 Follow-up Attacks . | . . . . . . . . . . . . . Damage Inflicted 5861 | . 279 . . 236 . 69 1143 891 171 . 859 2213 Guns 5088 | . 276 . . 127 . 69 1143 891 171 . 720 1691 Cannons . | . . . . . . . . . . . . . Explosions 134 | . . . . . . . . . . . 134 . Melee 590 | . . . . 70 . . . . . . . 520 Ramming 49 | . 3 . . 39 . . . . . . 5 2 Kinetic 1080 | . 8 . . 106 . . . . . . . 966 Thermal 1592 | . 268 . . 21 . . . . . . 720 583 Explosive . | . . . . . . . . . . . . . Electromagnetic 2550 | . . . . . . 69 1143 891 171 . 134 142 Impact 70 | . . . . 70 . . . . . . . . Slashing 520 | . . . . . . . . . . . . 520 Piercing . | . . . . . . . . . . . . . Highest Corruption 3 | . . . . 1 1 1 . . . . . 3 Average Corruption 1 | . . . . 1 1 1 . . . . . 1 Corruption Purged . | . . . . . . . . . . . . . Corruption Blocked . | . . . . . . . . . . . . . Effects 8 | . . . . 1 . 1 . . . . . 6 Message Errors 3 | . . . . . . 1 . . . . . 2 Matter Fused 1 | . . . . 1 . . . . . . . . Energy Discharges 1 | . . . . . . . . . . . . 1 Data Loss (minor) 1 | . . . . . . . . . . . . 1 Data Loss (major) 1 | . . . . . . . . . . . . 1 Misfires 1 | . . . . . . . . . . . . 1 Overload Shots . | . . . . . . . . . . . . . Overflow Damage 37 | . . . . 32 . . . . . . . 5 Projectiles . | . . . . . . . . . . . . . Explosions . | . . . . . . . . . . . . . Melee 37 | . . . . 32 . . . . . . . 5 Knockbacks . | . . . . . . . . . . . . . Impact . | . . . . . . . . . . . . . Kinetic . | . . . . . . . . . . . . . Secondary . | . . . . . . . . . . . . . Self-Inflicted Damage 16 | . . . . 3 . . . . . . 13 . Shots 3 | . . . . . . . . . . . 3 . Rammed 6 | . . . . 2 . . . . . . 4 . Targets Rammed 31 | . 2 . . 24 . . . . . . 4 1 Kicked 25 | . 2 . . 22 . . . . . . . 1 Crushed . | . . . . . . . . . . . . . Highest Temperature 360 | . 42 . . . . . 4 20 . . 219 360 Average Temperature 48 | . 22 . . . . . 2 5 . . 61 51 Received Heat Transfer 1407 | . 147 . . . . . 63 108 . . 285 804 Effects 2 | . . . . . . . . . . . 2 . Energy Bleed 2 | . . . . . . . . . . . 2 . Siege Activations . | . . . . . . . . . . . . . Martial Activations . | . . . . . . . . . . . . . Shielding Activations . | . . . . . . . . . . . . . Robots Disrupted . | . . . . . . . . . . . . . Combat Hostiles . | . . . . . . . . . . . . . Robots Corrupted 6 | . . . . . . . 3 2 1 . . . Combat Hostiles 5 | . . . . . . . 2 2 1 . . . Parts Fried 13 | . . . . . . . 5 5 3 . . . Impact Corruptions 1 | . . . . 1 . . . . . . . . Robots Melted 2 | . . . . . . . . . . . 2 . Combat Hostiles 2 | . . . . . . . . . . . 2 . Parts Melted 6 | . 1 . . . . . . . . . 5 . Heat Transferred 3659 | . 575 . . 50 . . . . . . 1961 1073 Parts Sabotaged . | . . . . . . . . . . . . . Parts Stolen . | . . . . . . . . . . . . . Parts Stripped . | . . . . . . . . . . . . . Power Chain Reactions . | . . . . . . . . . . . . . Alert | -11 -10 -10 -9 -9 -9 -8 -8 -8 -8 -8 -6 -5 ------- Run | Yrd Mat Min Mat Min Exi Min Mat Sto Rec Scr Fac Fac Maximum Alert Level 1 | . . . . . . . 1 1 . . . 1 Low Security (%) 92 | 100 100 100 100 100 . 100 60 69 100 . 100 89 Level 1 7 | . . . . . . . 39 30 . . . 10 Level 2 . | . . . . . . . . . . . . . Level 3 . | . . . . . . . . . . . . . Level 4 . | . . . . . . . . . . . . . Level 5 . | . . . . . . . . . . . . . High Security . | . . . . . . . . . . . . . Max Security . | . . . . . . . . . . . . . Peak Influence 312 | . 60 17 6 . . 90 296 312 96 . 125 214 Initial 87 | . . 17 . . . . 27 87 48 . . 28 Average 52 | . 23 4 1 . . 11 141 174 9 . 18 112 Influence Increases 2485 | . 181 2 6 5 . 90 511 338 68 . 689 595 Destroy 0b10 Robot/C 1580 | . 120 . . . . 80 380 240 40 . 340 380 Destroy 0b10 Robot/NC 50 | . 5 . . . . . 20 10 . . . 15 Destroy Leader 300 | . 20 . . . . 10 66 62 . . 80 62 Allied During Kill 121 | . . . . . . . . 26 28 . 58 9 Successful Hack 25 | . 6 2 6 5 . . . . . . . 6 Disable Machine 105 | . . . . . . . . . . . 60 45 Destroy Structure 49 | . . . . . . . . . . . 1 48 Partial Spotted 15 | . . . . . . . . . . . 15 . Lose Combat Pursuer 240 | . 30 . . . . . 45 . . . 135 30 Influence Decreases 2329 | . 136 45 8 5 . 20 373 421 193 . 630 498 Entered New Map 302 | . . 28 2 . . . 43 121 77 . . 31 Time Decay 986 | . 106 17 6 5 . 20 170 150 40 . 194 278 Lost Part 329 | . 30 . . . . . 10 . . . 159 130 Lost Ally 94 | . . . . . . . . . . . 74 20 Purge Threat 585 | . . . . . . . 150 150 76 . 203 6 Miscellaneous 33 | . . . . . . . . . . . . 33 Squads Dispatched 17 | . 1 . . . . . 1 2 . . 7 6 Investigation 6 | . . . . . . . . . . . 4 2 Extermination 3 | . . . . . . . . . . . 2 1 Reinforcement 7 | . 1 . . . . . 1 1 . . 1 3 Assault . | . . . . . . . . . . . . . Garrison 1 | . . . . . . . . 1 . . . . Intercept . | . . . . . . . . . . . . . Searches Triggered . | . . . . . . . . . . . . . Construction Impeded 1 | . . . . . . . . . . . . 1 Haulers Reinforced . | . . . . . . . . . . . . . Active Scanning Responses . | . . . . . . . . . . . . . Cargo Convoy Interrupts . | . . . . . . . . . . . . . Stealth | -11 -10 -10 -9 -9 -9 -8 -8 -8 -8 -8 -6 -5 --------- Run | Yrd Mat Min Mat Min Exi Min Mat Sto Rec Scr Fac Fac Distress Signals 5 | . 2 . . . . . 1 1 . . . 1 Communications Jammed . | . . . . . . . . . . . . . Distress Signals . | . . . . . . . . . . . . . Times Spotted 156 | . 20 . . 9 . 3 26 14 2 . 33 49 Peak Tracking Total 7 | . 5 . . 4 . 3 7 3 1 . 7 7 Tactical Retreats 12 | . 2 . . 1 . . 3 . . . 5 1 Traps | -11 -10 -10 -9 -9 -9 -8 -8 -8 -8 -8 -6 -5 ------- Run | Yrd Mat Min Mat Min Exi Min Mat Sto Rec Scr Fac Fac Traps Triggered 1 | . . . . . . . . . . . 1 . Indirectly . | . . . . . . . . . . . . . Trap Hack Attempts . | . . . . . . . . . . . . . Triggered . | . . . . . . . . . . . . . Disarmed . | . . . . . . . . . . . . . Reprogrammed . | . . . . . . . . . . . . . Reused . | . . . . . . . . . . . . . Traps Extracted . | . . . . . . . . . . . . . Installed . | . . . . . . . . . . . . . Triggered . | . . . . . . . . . . . . . Machines | -11 -10 -10 -9 -9 -9 -8 -8 -8 -8 -8 -6 -5 ---------- Run | Yrd Mat Min Mat Min Exi Min Mat Sto Rec Scr Fac Fac Machines Disabled 7 | . . . . . . . . . . . 4 3 Max in Single Turn 4 | . . . . . . . . . . . 4 1 Garrison Access 1 | . . . . . . . . 1 . . . . Machines Repaired . | . . . . . . . . . . . . . Machines Dismantled . | . . . . . . . . . . . . . Machines Sabotaged . | . . . . . . . . . . . . . Overloaded Fab Kills . | . . . . . . . . . . . . . Hacking | -11 -10 -10 -9 -9 -9 -8 -8 -8 -8 -8 -6 -5 --------- Run | Yrd Mat Min Mat Min Exi Min Mat Sto Rec Scr Fac Fac Machines Accessed 41 | . 4 1 2 1 . . 3 4 6 3 13 4 Terminals 26 | . 4 1 2 1 . . 3 3 4 . 6 2 Fabricators . | . . . . . . . . . . . . . Repair Stations 3 | . . . . . . . . . . . 3 . Recycling Units 6 | . . . . . . . . . . . 4 2 Scanalyzers . | . . . . . . . . . . . . . Garrison Access 1 | . . . . . . . . 1 . . . . Total Hacks 198 | . 7 4 5 3 . . 23 27 38 25 53 13 Successful 155 | . 1 3 2 1 . . 20 25 35 25 36 7 Failed 42 | . 6 1 2 2 . . 3 2 3 . 17 6 Catastrophic 6 | . 3 . 1 . . . . . . . 1 1 Database Lockouts 1 | . . . 1 . . . . . . . . . Manual 126 | . 4 . 3 . . . 24 27 6 . 49 13 Terminals 138 | . 7 4 5 3 . . 23 26 14 . 45 11 Fabricators . | . . . . . . . . . . . . . Repair Stations 4 | . . . . . . . . . . . 4 . Recycling Units 6 | . . . . . . . . . . . 4 2 Scanalyzers . | . . . . . . . . . . . . . Garrison Access 1 | . . . . . . . . 1 . . . . Terminal Hacks 129 | . 1 3 2 1 . . 16 18 35 25 24 4 Record 53 | . . 3 . . . . . 1 24 25 . . Robot Analysis 31 | . 1 . 1 . . . 7 9 . . 13 . Prototype ID Bank 1 | . . . . . . . . . 1 . . . Open Door 1 | . . . . . . . . 1 . . . . Open DSF 1 | . . . . . . . . . . . 1 . Level Access Points 2 | . . . . . . . . . 1 . . 1 Branch Access Points 5 | . . . 1 . . . 1 2 1 . . . Machine Index 4 | . . . . . . . 1 1 1 . 1 . Terminal Index 1 | . . . . . . . . . . . . 1 Recycling Unit Index 1 | . . . . . . . . . . . . 1 Alert Level 1 | . . . . . . . . 1 . . . . Unreport Threat 9 | . . . . . . . 1 1 2 . 4 1 Locate Traps 2 | . . . . . . . 1 . . . 1 . Surveillance Status 1 | . . . . . . . . . 1 . . . Patrol Status 1 | . . . . . . . . . 1 . . . Recall Investigation 3 | . . . . . . . 1 1 . . 1 . Recall Reinforcements 4 | . . . . . . . 2 1 . . 1 . Recall Assault 1 | . . . . . . . . . . . 1 . Hauler Manifests 1 | . . . . . . . . . 1 . . . Zone Layout 6 | . . . . 1 . . 2 . 2 . 1 . Fabricator Hacks . | . . . . . . . . . . . . . Repair Station Hacks 4 | . . . . . . . . . . . 4 . Refit 4 | . . . . . . . . . . . 4 . Recycling Unit Hacks . | . . . . . . . . . . . . . Scanalyzer . | . . . . . . . . . . . . . Garrison Access Hacks 1 | . . . . . . . . 1 . . . . Seal Access 1 | . . . . . . . . 1 . . . . Unauthorized Hacks 21 | . . . . . . . 4 6 . . 8 3 Terminals 15 | . . . . . . . 4 6 . . 4 1 Track 1 | . . . . . . . . 1 . . . . Assimilate 2 | . . . . . . . 1 1 . . . . Botnet 6 | . . . . . . . 2 1 . . 3 . Disrupt 4 | . . . . . . . 1 1 . . 1 1 Operators 1 | . . . . . . . . 1 . . . . Skim 1 | . . . . . . . . 1 . . . . Fabricators . | . . . . . . . . . . . . . Repair Stations . | . . . . . . . . . . . . . Recycling Units 6 | . . . . . . . . . . . 4 2 Fedlink 6 | . . . . . . . . . . . 4 2 Scanalyzers . | . . . . . . . . . . . . . Garrison Access . | . . . . . . . . . . . . . Data Cores Recovered . | . . . . . . . . . . . . . Used . | . . . . . . . . . . . . . Hacking Detections 23 | . 4 1 2 1 . . 3 1 3 . 6 2 Full Trace Events . | . . . . . . . . . . . . . Feedback Events . | . . . . . . . . . . . . . Feedback Blocked . | . . . . . . . . . . . . . Robot Schematics Acquired . | . . . . . . . . . . . . . Robots Built . | . . . . . . . . . . . . . Authchips . | . . . . . . . . . . . . . Time . | . . . . . . . . . . . . . Total Robot Build Rating . | . . . . . . . . . . . . . Part Schematics Acquired . | . . . . . . . . . . . . . Parts Built . | . . . . . . . . . . . . . Authchips . | . . . . . . . . . . . . . Time . | . . . . . . . . . . . . . Total Part Build Rating . | . . . . . . . . . . . . . Parts Repaired . | . . . . . . . . . . . . . Time . | . . . . . . . . . . . . . Parts Recycled . | . . . . . . . . . . . . . Recycled Matter . | . . . . . . . . . . . . . Retrieved Matter . | . . . . . . . . . . . . . Retrieved Components . | . . . . . . . . . . . . . Parts Scanalyzed . | . . . . . . . . . . . . . Part Schematics Acquired . | . . . . . . . . . . . . . Parts Damaged . | . . . . . . . . . . . . . Bothacking | -11 -10 -10 -9 -9 -9 -8 -8 -8 -8 -8 -6 -5 ------------ Run | Yrd Mat Min Mat Min Exi Min Mat Sto Rec Scr Fac Fac Used RIF Installer . | . . . . . . . . . . . . . Robots Hacked 9 | . 3 . . . . . . . . . . 6 Non-combat . | . . . . . . . . . . . . . Combat 9 | . 3 . . . . . . . . . . 6 Robot Hacks Applied 15 | . 3 . . . . . . . . . . 12 find_shortcuts 9 | . 3 . . . . . . . . . . 6 find_garrison 6 | . . . . . . . . . . . . 6 Relay Couplers Released . | . . . . . . . . . . . . . Fabnet Peak Effective % . | . . . . . . . . . . . . . Robots Rewired . | . . . . . . . . . . . . . Allies Hacked . | . . . . . . . . . . . . . Hacks Repelled . | . . . . . . . . . . . . . Allies | -11 -10 -10 -9 -9 -9 -8 -8 -8 -8 -8 -6 -5 -------- Run | Yrd Mat Min Mat Min Exi Min Mat Sto Rec Scr Fac Fac Total Allies 10 | . . . . . . . . 10 . . . . Largest Group 10 | . . . . . . . . 10 10 10 10 . Highest-Rated Group 173 | . . . . . . . . 173 173 173 173 . Highest-Rated Ally 29 | . . . . . . . . 29 29 29 29 . Total Orders . | . . . . . . . . . . . . . Ally Attacks 88 | . . . . . . . . 11 6 . 64 7 Total Damage 1965 | . . . . . . . . 139 60 . 701 1065 Kills 11 | . . . . . . . . 1 . . 5 5 Allies Corrupted 1 | . . . . . . . . . . . . 1 Allies Melted . | . . . . . . . . . . . . . Turrets Deployed 1 | . . . . . . . . . . . . 1 Intel | -11 -10 -10 -9 -9 -9 -8 -8 -8 -8 -8 -6 -5 ------- Run | Yrd Mat Min Mat Min Exi Min Mat Sto Rec Scr Fac Fac Active Infowar (turns) . | . . . . . . . . . . . . . Robot Analysis Total 32 | . 2 . . 1 . . 7 9 . . 13 . Derelict Logs Recovered 1 | . . . . 1 . . . . . . . . Drone Launches . | . . . . . . . . . . . . . Drone Recoveries . | . . . . . . . . . . . . . Exploration | -11 -10 -10 -9 -9 -9 -8 -8 -8 -8 -8 -6 -5 ------------- Run | Yrd Mat Min Mat Min Exi Min Mat Sto Rec Scr Fac Fac Turns Passed 4744 | 9 288 113 82 500 146 313 349 308 604 287 957 788 Spaces Moved 4661 | 18 213 95 69 431 264 380 346 246 544 317 1013 725 Core 768 | 18 87 . . 2 215 . . . . . 6 440 Treads . | . . . . . . . . . . . . . Legs 807 | . 85 95 69 275 . . . . . . . 283 Wheels . | . . . . . . . . . . . . . Hover 3045 | . . . . 154 49 380 346 246 544 317 1007 2 Flight 41 | . 41 . . . . . . . . . . . Fastest Speed 37 | 50 37 120 120 50 50 80 80 80 80 80 50 50 Average Speed 80 | 50 75 120 120 98 55 80 80 80 80 80 79 77 Slowest Speed 120 | 50 120 120 120 120 80 80 80 80 80 80 80 120 Overloaded Moves . | . . . . . . . . . . . . . Propulsion Burnouts . | . . . . . . . . . . . . . Robots Hopped . | . . . . . . . . . . . . . Potential Cave-ins . | . . . . . . . . . . . . . Cave-ins Triggered . | . . . . . . . . . . . . . Exploration Rate (%) 45 | 3 48 31 17 91 76 87 28 39 88 36 29 18 Regions Visited 12 Branch Regions 7 Pre-discovered Areas 2 | . . 1 . . . . . . . . 1 . Known Exits Taken 4 | . . . 1 . . . 1 1 . 1 . . Unknown Exits Taken 8 | 1 1 1 . 1 1 1 . . 1 . 1 . Scrap Searched 1 | . . . . . . . . . . 1 . . Spaces Dug . | . . . . . . . . . . . . . Terrain Destroyed . | . . . . . . . . . . . . . Melee . | . . . . . . . . . . . . . Projectile . | . . . . . . . . . . . . . AOE . | . . . . . . . . . . . . . Terrain Rammed . | . . . . . . . . . . . . . Walls Destroyed . | . . . . . . . . . . . . . Machines Disabled . | . . . . . . . . . . . . . Actions | -11 -10 -10 -9 -9 -9 -8 -8 -8 -8 -8 -6 -5 --------- Run | Yrd Mat Min Mat Min Exi Min Mat Sto Rec Scr Fac Fac Total 5370 | 17 308 94 68 482 263 388 418 356 712 350 1093 821 Wait 512 | . 63 . . 11 . 9 71 111 169 34 40 4 Move 4649 | 17 212 94 68 430 263 379 345 245 543 316 1012 725 Hop . | . . . . . . . . . . . . . Pick Up 2 | . . . . . . . 1 . . . . 1 Fast Attach . | . . . . . . . . . . . . . Attach . | . . . . . . . . . . . . . Detach . | . . . . . . . . . . . . . Swap . | . . . . . . . . . . . . . Drop 3 | . . . . . . . 1 . . . . 2 Fire 155 | . 31 . . 14 . . . . . . 37 73 Melee 18 | . . . . 3 . . . . . . . 15 Ram 6 | . . . . 2 . . . . . . 4 . Kick 25 | . 2 . . 22 . . . . . . . 1 Crush . | . . . . . . . . . . . . . Escape Stasis . | . . . . . . . . . . . . . Rewire . | . . . . . . . . . . . . . Trap . | . . . . . . . . . . . . . Miscellaneous . | . . . . . . . . . . . . . Route ------- -11/Scrapyard -10/Materials (discovered 2 exits: *Mat / *Min) -10/Mines -9/Materials -9/Mines (discovered 3 exits: *Mat x2 / [*Exi]) -9/Exiles -8/Mines -8/Materials -8/Storage -8/Recycling (discovered 2 exits: *Fac / *Scr) -8/Scraptown -6/Factory -5/Factory (discovered 5 exits: Fac x4 / [*Upp]) History --------- Turn | Location | Event 4 | -11/Scrapyard | Discovered new exit (range 13) 10 | -11/Scrapyard | Entered Materials 78 | -10/Materials | Discovered new exit (range 8) 189 | -10/Materials | Discovered new exit (range 12) 278 | -10/Materials | Core integrity fell below 50% 298 | -10/Materials | Entered Mines 299 | -10/Mines | Learned location of Storage (-8) 384 | -10/Mines | Discovered new exit (range 11) 411 | -10/Mines | Entered Materials 451 | -9/Materials | Central database locked down 451 | -9/Materials | Identified exit to Mines 493 | -9/Materials | Entered Mines 600 | -9/Mines | Assembled infested the area 642 | -9/Mines | Learned Materials interactive machine intel 658 | -9/Mines | Discovered new exit (range 11) 961 | -9/Mines | Discovered new exit (range 6) 991 | -9/Mines | Deemed a non-threat by the Exiles lab entrance 991 | -9/Mines | Discovered new exit (range 5) 993 | -9/Mines | Entered Exiles 1006 | -9/Exiles | Met 8R-AWN 1015 | -9/Exiles | Met EX-HEX 1030 | -9/Exiles | Met EX-BIN 1035 | -9/Exiles | Met EX-DEC 1051 | -9/Exiles | Visited The Gauntlet 1101 | -9/Exiles | Took control of EX-DEC (ally) 1131 | -9/Exiles | Discovered new exit (range 10) 1139 | -9/Exiles | Left Exiles lab with Deploy-a-Sentry 1139 | -9/Exiles | Entered Mines 1399 | -8/Mines | Discovered new exit (range 10) 1452 | -8/Mines | Entered Materials 1453 | -8/Materials | Loaded intel: 19 interactive machine locations 1477 | -8/Materials | Discovered new exit (range 15) 1731 | -8/Materials | Identified exit to Storage 1801 | -8/Materials | Entered Storage 1828 | -8/Storage | Garrison activated, responded to threat 1863 | -8/Storage | Destroyed 7 combat bots 1925 | -8/Storage | Identified exit to Recycling 1928 | -8/Storage | Assisted by bots powering up and referring to "LRC-V3" 2069 | -8/Storage | Used back door to open Recycling access 2109 | -8/Storage | Entered Recycling 2109 | -8/Recycling | Accompanied by 10 allies 2369 | -8/Recycling | Identified exit to Factory 2490 | -8/Recycling | Scanned before Scraplab entrance 2502 | -8/Recycling | Entered Scraplab 2510 | -8/Recycling | Discovered new exit (range 2) 2713 | -8/Recycling | Entered Scraptown 2713 | -8/Scraptown | Accompanied by 10 allies 2786 | -8/Scraptown | Heard Great Nut preacher, LISTEN AND RECITE! 2796 | -8/Scraptown | Visited UFD Registry 2796 | -8/Scraptown | Registered with UFD as "Plasmagunner" 2827 | -8/Scraptown | Visited DA-N13 Charitable Foundation 2849 | -8/Scraptown | Visited Scrapoid Research Area 2873 | -8/Scraptown | Visited Junk Repository 2900 | -8/Scraptown | Met Optimus 2900 | -8/Scraptown | Accepted into 0bPrime 2963 | -8/Scraptown | Discovered exit to Factory (range 3) 3000 | -8/Scraptown | Entered Factory 3000 | -6/Factory | Accompanied by 10 allies 3016 | -6/Factory | Loaded intel: 8 recycling unit locations 3056 | -6/Factory | Learned location of Protoforge (-2) 3447 | -6/Factory | Lost 6 allies 3494 | -6/Factory | Lost 3 allies 3796 | -6/Factory | Lost 5 parts (1p3u1w) 3899 | -6/Factory | Core integrity fell below 50% 3939 | -6/Factory | Lost 7 parts (1p5u1w) 3947 | -6/Factory | Core integrity fell below 20% 3948 | -6/Factory | Discovered new exit (range 14) 3957 | -6/Factory | Entered another Factory area 3985 | -5/Factory | Lost 3 parts (1n1u1w) 4166 | -5/Factory | Identified exit to Factory 4173 | -5/Factory | DAS Turret deployed 4251 | -5/Factory | Lost 7 parts (1p1n3u2w) 4275 | -5/Factory | Loaded intel: 8 recycling unit locations 4366 | -5/Factory | Core integrity fell below 50% 4483 | -5/Factory | Discovered new exit (range 13) 4707 | -5/Factory | Core integrity fell below 20% 4745 | -5/Factory | Destroyed by G-50 Soldier with Heavy Laser Last Messages --------------- 04721_ K-01 Serf collects debris. 04721_ U-05 Engineer lays Concrete. 04722_ G-50 Soldier destroyed. 04723_ K-01 Serf collects debris. 04723_ R-10 Processor collects Lgt. Angular Momentum Engine. 04723_ U-05 Engineer lays Concrete. 04724_ K-01 Serf collects debris. 04724_ Acquired 43 Protomatter. 04725_ U-05 Engineer lays Concrete. 04726_ K-01 Serf destroyed. 04727_ R-10 Processor collects Med. Matter Pod. 04727_ K-01 Serf collects debris. 04728_ U-05 Engineer builds a Wall. 04730_ R-10 Processor collects Wheel. 04732_ U-05 Engineer builds a Wall. 04736_ Lgt. Angular Momentum Engine destroyed. 04738_ U-05 Engineer lays Concrete. 04741_ Hvy. Laser destroyed. 04741_ Carbon-fiber Leg destroyed. 04742_ U-05 Engineer lays Concrete. Map ----- +----------------------------------------------------+ | ??????????????????????????????# ! #????????? | | ??????????????????????????????# #????????? | | ??????????????????????????????# """ #????????? | | ??????????????????????????????+ """ ""#????????? | | ??????????????????????????????# """ F"#????????? | | ??????????????????????????????# "" "#????????? | | ??????????????????????????#???# "" ""#????????? | | ????????????????????????### #?# #????????? | | ????????????????????????# ##+########????????? | | ????????????????????????# #??????????? | | ???? ????????????????# " #??????????? | | ? ????????????????# #?########## | | ?? #???????????????# ##### #?# # | | ?? #???????????????######???## ### """" !# | | ??# #????????????????? #????# ## """" # | | ??# #????????????????? #????# ## """" # | | ??# #???????????????""" #????# " + """" # | | ??+ #???????????????""" #????# ## """" ! # | | ??# !#????????????????"" #????# ## """" # | | ??# %###########??????? ######## #### """" # | | ??# # ! ! #???###+#;;;###### #??# # | | ??# # #???# ########+#### | | ??# # """ """ ##### #??? | | ??# # """ """ + #??? | | ??# + """ """ #####Rg u #??? | | ??# # #???# g #??? | | ### # #???##;g ;;#############??? | | # #????#;= ; #??????? | | +####+#########+######### ; #??????? | | ???????????????# #] ; #??????? | | ???????????????# # % # #??????? | | ??????????????#! " " # ####u############??????? | | "" ??????????????# "Y" ; #??#/#?????????????????? | | ""S"?????????????/ """ # #??# ?????????????????? | | """"?????????????# # #??# ?[????????????????? | | #####????????????######## ??# ? ???????????????? | | ????????????????????????####?# ?? #??????????????? | | ?????????????????????????????# ???#??????????????? | | ?????????????????????????????????????????????????? | | ?????????????????????????????????????????????????? | | ?????????????????????????????????????????????????? | | ?????????????????????????????????????????????????? | | ?????????????????????????????????????????????????? | | ?????????????????????????????????????????????????? | | ?????????????????????????????????????????????????? | | ?????????????????????????????????????????????????? | | ?????????????????????????????????????????????????? | | ?????????????????????????????????????????????????? | | ?????????????????????????????????????????????????? | | ?????????????????????????????????????????????????? | +----------------------------------------------------+ Best States ------------- Heat Dissipation 54 Energy Generation 25 Energy Capacity 240 Matter Stores 200 Matter Capacity 200 Sight Range 16 Terrain Scan Density 10 Resistance: KI 25 Resistance: EX 25 Resistance: EM 90 Resistance: S 25 Resistance: P 25 Core Shielding 20 Melee Speed Boost 20 Phase Shifting 5 Evasion (%) 62 Targeting Accuracy 10 Melee Accuracy 6 Launcher Accuracy 40 Target Analysis 6 Core Analysis 8 Armor Integrity Analysis 40 Offensive Hacking 70 Defensive Hacking 56 Item Schematics ----------------- None Robot Schematics ------------------ None Fabricated ------------ Nothing Repaired ---------- Nothing Alien Tech Used ----------------- None Achievements -------------- None Challenges ------------ None Polymind | -11 -10 -10 -9 -9 -9 -8 -8 -8 -8 -8 -6 -5 ---------- Run | Yrd Mat Min Mat Min Exi Min Mat Sto Rec Scr Fac Fac Hosts 12 | . 3 . . 2 1 . . . . . . 6 Combat Hostiles 11 | . 3 . . 2 . . . . . . . 6 Allies 1 | . . . . . 1 . . . . . . . Unique Host Classes 7 | . 2 . . 1 1 . . . . . . 3 Average Host Suspicion 76 | . 99 18 23 42 . 67 93 99 99 . 89 91 Unsuspicious Activity 509 | . . . . 426 16 . . . . . . 67 Returns to Shadow . | . . . . . . . . . . . . . Fuzzy Dispatches 3 | . . . . . . . . . . . 2 1 Protomatter Created 809 | . 42 . . 89 . 10 149 75 . . 136 308 Used 386 | . 36 . . 32 33 . . . . . . 285 Decayed 48 | . . . . 43 . 5 . . . . . . Highest Spend 53 | . 15 . . 16 33 . . . . . . 53 Top 5 Hosts by Kills: EX-DEC (-9/Exiles: 48) H-66 Slayer (-5/Factory: 7) G-34 Mercenary (-10/Materials: 4) L-41 Fighter (-5/Factory: 3) G-50 Soldier (-5/Factory: 2) Game ------ Seed CobblerWeaponSystem Manual? 0 Play Time 00:55:08 Cumulative 154.2 hours Start 2025.05.26 @ 17:14:30 End 2025.05.26 @ 18:19:33 Sessions 1 Manual Loads 0 Difficulty Rogue Special Mode Winter2022/Polymind Game No. 227 Rogue 224 Adventurer 3 Explorer 0 Win Type - Total 1 Types 1/0/0/0/0/0/0/0/0/0 Lore% 43 Gallery% 55 Achievement% 45 Wizard Run 0 Options --------- Layout 0 ASCII 0 Keyboard 0 Movement Mouse Keybinds 0 Fullscreen 2 Font 18/SmallcapsGlow Map View 76x50 Zoom Use 0% Tactical HUD 1 Map Filters NONE Filters NONE Steam 1 RUN: 8eeca153-48a0-4213-9f15-445cdaf73c39